bitfinex/quotes_ETHUSD_20240722
["timestamp","ask_amount","ask_price","bid_price","bid_amount"]
[1721681378823,3.0,3496.1,3494.9,2.86127]
[1721681378824,3.0,3496.1,3495.4,2.86083]
[1721681378994,2.86041,3496.0,3495.4,2.86083]
[1721681379326,3.6432279,3496.1,3495.5,2.86081]
[1721681379639,3.0,3496.1,3495.5,2.86081]
[1721681379792,2.86031,3496.2,3495.5,2.86077]
[1721681379991,3.0,3496.1,3495.5,2.86077]
[1721681380224,3.0,3496.1,3495.5,5.72154]
[1721681380541,3.0,3496.1,3495.6,2.86073]
[1721681380684,3.0,3496.1,3495.5,2.86074]
[1721681380888,2.86038,3496.1,3495.5,2.86074]
[1721681381127,3.0,3496.0,3495.6,2.86073]
[1721681381395,3.0,3496.2,3495.6,2.86067]
[1721681381601,3.0,3496.2,3495.6,5.72134]
[1721681381839,2.86055,3495.9,3495.6,0.144]
[1721681382011,2.86068,3495.7,3495.6,0.144]
[1721681382412,5.72136,3495.7,3495.6,0.144]
[1721681384106,11.878129,3495.7,3495.6,0.144]
[1721681384441,15.228129,3495.7,3495.6,0.144]
[1721681384804,18.088809,3495.7,3495.6,0.144]
[1721681385215,15.228129,3495.7,3495.6,0.144]
[1721681386321,18.088809,3495.7,3495.6,0.144]
[1721681386728,2.86154,3494.7,3493.5,2.735149]
[1721681386931,2.86154,3494.7,3493.6,0.5597709]
[1721681386932,2.86151,3494.7,3493.6,0.5597709]
[1721681387243,2.86123,3495.0,3493.5,2.735149]
[1721681387244,2.86189,3494.2,3493.5,2.735149]
[1721681387413,2.26457591,3494.2,3493.5,2.735149]
[1721681387613,2.86185,3494.3,3493.5,2.735149]
[1721681387838,2.86193,3494.2,3493.5,2.735149]
[1721681388111,2.86217,3493.9,3493.5,2.735149]
[1721681388444,2.86228,3493.8,3493.6,0.8235149]
[1721681388807,2.86229,3493.7,3493.6,0.8235149]
[1721681389641,2.86229,3493.7,3493.6,0.2735149]
[1721681389642,5.72458,3493.7,3493.6,0.2735149]
[1721681389815,2.86205,3494.0,3492.9,0.3435599]
[1721681390022,2.86286,3493.0,3492.9,0.3435599]
[1721681390221,5.72572,3493.0,3492.9,0.3435599]
[1721681392004,8.58858,3493.0,3492.9,0.3435599]
[1721681392205,2.4379,3493.9,3491.6,2.4516]
[1721681392206,2.8633,3492.5,3491.6,2.4516]
[1721681392411,2.86366,3492.1,3491.6,2.4516]
[1721681392675,2.86374,3492.0,3491.6,2.4516]
[1721681392950,2.86383,3491.9,3491.6,2.4516]
[1721681393246,2.86385,3491.8,3491.7,0.24516]
[1721681393971,2.86385,3491.8,3491.3,3.019]
[1721681394175,2.4036,3493.0,3491.2,3.019]
[1721681394176,5.72746,3492.0,3491.2,3.019]
[1721681394462,2.86329,3492.5,3491.3,3.019]
[1721681394648,2.86366,3492.1,3491.3,3.019]
[1721681394819,2.86366,3492.1,3491.4,0.55]
[1721681395024,2.86364,3492.1,3491.5,0.643331]
[1721681395225,2.86364,3492.1,3491.6,0.55]
[1721681397028,2.86348,3492.3,3491.6,0.55]
[1721681397228,2.86364,3492.1,3491.6,0.55]
[1721681399179,2.86348,3492.3,3491.7,2.86388]
[1721681399395,2.86322,3492.6,3491.8,3.8194911]
[1721681399535,2.86327,3492.6,3491.8,3.2695111]
[1721681399736,5.26651,3493.0,3491.9,0.55]
[1721681399737,2.86345,3492.3,3491.9,0.55]
[1721681400383,2.86334,3492.5,3491.9,0.55]
[1721681400598,2.8636,3492.1,3492.0,0.38195111]
[1721681400880,2.4036,3493.0,3491.9,0.55]
[1721681400881,2.86346,3492.3,3491.9,0.55]
[1721681401055,2.86324,3492.6,3492.0,2.86367]
[1721681401259,2.86311,3492.7,3492.1,0.55]
[1721681401448,2.8632,3492.6,3492.0,2.86367]
[1721681401650,2.86342,3492.4,3492.1,1.21832011]
[1721681401988,2.86323,3492.6,3492.1,0.55]
[1721681402186,2.86342,3492.4,3491.9,0.55]
[1721681402346,2.86339,3492.4,3491.9,0.55]
[1721681402967,2.86356,3492.2,3491.9,0.55]
[1721681403460,2.86363,3492.1,3491.9,0.55]
[1721681403791,2.86356,3492.2,3491.9,0.55]
[1721681404292,2.86361,3492.1,3491.9,1.23387111]
[1721681404767,2.86366,3492.1,3491.9,1.23387111]
[1721681404968,5.26653,3493.0,3491.9,0.55]
[1721681404969,2.86368,3492.0,3491.9,0.55]
[1721681405260,2.86378,3491.9,3491.6,0.55]
[1721681405474,5.72729,3492.1,3491.6,0.55]
[1721681405678,2.86372,3492.0,3491.6,0.55]
[1721681405847,2.4036,3493.0,3491.6,0.55]
[1721681405848,2.86361,3492.1,3491.6,0.55]
[1721681406046,2.86367,3492.1,3491.7,0.4057451]
[1721681406248,2.86369,3492.0,3491.8,0.55]
[1721681406886,2.86347,3492.3,3491.8,0.55]
[1721681407098,2.86361,3492.1,3491.8,0.55]
[1721681407244,2.86347,3492.3,3491.8,0.55]
[1721681407449,2.86349,3492.3,3491.9,0.38196651]
[1721681407708,5.727,3492.3,3491.9,0.38196651]
[1721681407904,2.86366,3492.1,3491.9,0.38196651]
[1721681410071,2.86368,3492.0,3491.9,0.38196651]
[1721681410272,2.86368,3492.0,3491.9,0.55]
[1721681410690,2.86358,3492.2,3491.8,0.55]
[1721681410913,2.8636,3492.1,3491.8,0.55]
[1721681411069,2.8636,3492.1,3491.9,0.38197151]
[1721681411801,2.86363,3492.1,3491.9,0.38197151]
[1721681412722,2.86352,3492.2,3491.9,0.38197151]
[1721681412941,2.4036,3493.0,3491.8,0.55]
[1721681412942,2.86344,3492.3,3491.8,0.55]
[1721681413108,2.86344,3492.3,3491.8,2.86384]
[1721681413311,2.86344,3492.3,3491.9,0.55]
[1721681413706,2.86352,3492.2,3491.9,0.55]
[1721681413915,2.86352,3492.2,3491.7,0.55]
[1721681414240,2.86361,3492.1,3491.8,0.4057281]
[1721681414444,2.86368,3492.0,3491.9,0.55]
[1721681414740,2.4036,3493.0,3491.7,0.55]
[1721681414741,3.21349,3492.3,3491.7,0.55]
[1721681414894,2.86349,3492.3,3491.7,0.55]
[1721681415094,3.21349,3492.3,3491.8,0.4057321]
[1721681415330,2.86364,3492.1,3491.8,0.4057321]
[1721681415531,3.21349,3492.3,3491.8,0.4057321]
[1721681415848,2.86349,3492.3,3491.8,0.4057321]
[1721681416832,2.8636,3492.1,3491.8,0.4057321]
[1721681417046,2.86349,3492.3,3491.8,0.4057321]
[1721681417199,2.86349,3492.3,3491.9,0.38196521]
[1721681418325,2.86368,3492.1,3491.8,0.4057321]
[1721681419022,5.72735,3492.1,3491.8,0.4057321]
[1721681419208,2.86368,3492.0,3491.8,0.4057321]
[1721681419519,2.86367,3492.1,3491.7,0.55]
[1721681419712,2.86381,3491.9,3491.6,0.55]
[1721681420148,2.86385,3491.8,3491.4,7.4]
[1721681420333,2.86406,3491.6,3490.9,10.4]
[1721681420538,2.86406,3491.6,3490.9,7.4]
[1721681420539,2.86408,3491.6,3490.9,7.4]
[1721681420721,2.86388,3491.8,3491.1,2.86438]
[1721681420722,2.86393,3491.7,3491.1,2.86438]
[1721681420912,2.86388,3491.8,3491.2,2.86434]
[1721681421110,3.21388,3491.8,3491.2,2.86434]
[1721681421410,3.21388,3491.8,3491.2,4.177219]
[1721681421721,5.17077,3492.3,3491.4,2.86416]
[1721681421722,2.86378,3491.9,3491.4,2.86416]
[1721681422108,2.86378,3491.9,3491.4,2.86412]
[1721681422109,0.35,3491.9,3491.4,2.86412]
[1721681422542,0.35,3491.9,3491.7,2.86392]
[1721681422710,5.17077,3492.3,3491.8,0.286392]
[1721681422924,5.17076,3492.3,3491.7,2.86388]
[1721681423160,0.35,3492.1,3491.7,2.86388]
[1721681423351,3.2136,3492.1,3491.6,2.86401]
[1721681423661,0.35,3492.1,3491.7,2.86386]
[1721681425759,0.35,3492.1,3491.7,5.72774]
[1721681425961,0.35,3492.1,3492.0,2.86368]
[1721681426167,5.17042,3492.7,3491.8,0.55]
[1721681426370,0.35,3492.4,3492.2,2.86351]
[1721681426526,0.35,3492.4,3492.0,2.86363]
[1721681426726,0.35,3492.4,3492.1,0.341363]
[1721681426926,0.35,3492.4,3491.8,0.55]
[1721681427125,0.35,3492.4,3491.7,3.4139]
[1721681428348,0.35,3492.4,3491.7,3.4711638]
[1721681428949,0.35,3492.4,3491.7,3.4139]
[1721681429474,0.35,3492.4,3491.7,0.55]
[1721681429772,2.86339,3492.4,3491.8,3.945246]
[1721681429929,2.86348,3492.3,3491.9,0.55]
[1721681430131,2.86352,3492.2,3491.9,0.55]
[1721681430332,2.86344,3492.3,3491.9,0.55]
[1721681430568,2.86344,3492.3,3492.0,0.4495246]
[1721681431570,2.8636,3492.1,3492.0,0.4495246]
[1721681431846,2.86368,3492.0,3491.9,0.55]
[1721681432028,2.8636,3492.1,3491.9,0.55]
[1721681432234,2.86321,3492.6,3491.9,0.55]
[1721681432452,2.86354,3492.2,3491.9,0.55]
[1721681432677,2.86368,3492.0,3491.9,0.55]
[1721681433468,5.72736,3492.0,3491.9,0.55]
[1721681433644,2.86368,3492.0,3491.9,0.55]
[1721681433845,5.72736,3492.0,3491.9,0.55]
[1721681434250,5.72736,3492.0,3491.9,1.54612664]
[1721681434846,5.72736,3492.0,3491.9,0.55]
[1721681435064,2.86368,3492.0,3491.6,8.00113999]
[1721681435341,5.72786,3491.7,3491.6,7.4]
[1721681435560,6.07786,3491.7,3491.6,7.4]
[1721681436272,0.35,3491.7,3491.3,0.60113999]
[1721681436432,0.35,3491.7,3491.4,0.99628552]
[1721681436433,2.86401,3491.6,3491.4,0.99628552]
[1721681436634,2.86442,3491.1,3491.0,8.00113999]
[1721681436860,5.72884,3491.1,3491.0,3.50142622]
[1721681437059,5.72884,3491.1,3491.0,0.99636529]
[1721681437270,2.86442,3491.1,3491.0,0.99636529]
[1721681437434,2.86442,3491.1,3490.7,0.60113999]
[1721681437636,2.86442,3491.1,3490.8,2.49103638]
[1721681437876,2.86442,3491.1,3490.9,2.49103638]
[1721681438210,2.86442,3491.1,3491.0,3.04090588]
[1721681438410,2.86442,3491.1,3491.0,0.55]
[1721681438721,2.86434,3491.2,3491.0,0.55]
[1721681438878,2.86432,3491.3,3491.0,0.55]
[1721681439078,2.86442,3491.1,3491.0,0.55]
[1721681439300,5.72884,3491.1,3491.0,0.55]
[1721681439501,2.86464,3490.9,3490.8,0.55]
[1721681439822,2.86464,3490.9,3490.8,1.20169142]
[1721681440000,2.86464,3490.9,3490.8,1.75169142]
[1721681440203,2.86451,3491.0,3490.8,1.75169142]
[1721681440505,2.86477,3490.7,3490.4,0.60113999]
[1721681440719,2.86459,3490.9,3490.5,2.49106325]
[1721681440921,2.86459,3490.9,3490.6,0.9964253]
[1721681441118,2.86459,3490.9,3490.4,0.60113999]
[1721681441325,2.86468,3490.8,3490.5,1.43947493]
[1721681441478,2.86468,3490.8,3490.5,0.44305262]
[1721681442304,2.86468,3490.8,3490.3,0.66374619]
[1721681442305,2.86468,3490.8,3490.3,0.0626062]
[1721681442493,2.86468,3490.8,3490.4,0.55]
[1721681442695,2.2928,3491.5,3490.4,0.55]
[1721681442909,2.8649,3490.6,3490.4,0.55]
[1721681443308,2.86471,3490.8,3490.4,0.55]
[1721681443826,2.86489,3490.6,3490.4,0.55]
[1721681444154,11.0461,3490.4,3490.3,0.0626062]
[1721681444841,11.3961,3490.4,3490.3,0.0626062]
[1721681444988,8.5311,3490.4,3490.3,0.0626062]
[1721681445810,11.3961,3490.4,3490.3,0.0626062]
[1721681448760,8.5311,3490.4,3490.3,0.0626062]
[1721681449113,9.71564942,3490.4,3490.3,0.0626062]
[1721681450247,15.44564942,3490.4,3490.3,0.0626062]
[1721681450466,18.44564942,3490.4,3490.3,0.0626062]
[1721681450625,15.58064942,3490.4,3490.3,0.0626062]
[1721681451361,20.89264942,3490.4,3490.3,0.0626062]
[1721681451721,18.02764942,3490.4,3490.3,0.0626062]
[1721681452127,20.89264942,3490.4,3490.3,0.0626062]
[1721681454435,15.58064942,3490.4,3490.3,0.0626062]
[1721681454682,18.44564942,3490.4,3490.3,0.0626062]
[1721681454840,20.89264942,3490.4,3490.3,0.0626062]
[1721681455535,22.59264942,3490.4,3490.3,6.2e-06]
[1721681456139,2.4854,3489.4,3488.0,2.86696]
[1721681456340,2.86637,3488.8,3488.0,3.153656]
[1721681456642,2.86656,3488.5,3488.0,0.286696]
[1721681456875,0.35,3488.5,3488.0,3.153626]
[1721681457135,0.35,3488.5,3488.0,3.153606]
[1721681457774,2.86648,3488.6,3488.0,3.153606]
[1721681458084,0.35,3488.6,3488.1,0.6020706]
[1721681458276,0.35,3488.6,3488.1,3.4689106]
[1721681458479,0.35,3488.6,3488.1,3.4689506]
[1721681458683,0.35,3488.6,3488.2,2.86679]
[1721681458878,0.35,3488.6,3488.1,0.6020706]
[1721681459192,0.35,3488.6,3488.2,0.66226566]
[1721681459476,3.21653,3488.6,3487.3,2.86752]
[1721681459686,2.86666,3488.4,3487.8,2.86709]
[1721681459980,0.35,3488.2,3487.8,2.86709]
[1721681460190,0.35,3488.2,3487.9,2.86704]
[1721681460349,0.35,3488.2,3488.1,2.86689]
[1721681460684,2.86615,3489.0,3488.3,2.86664]
[1721681460870,2.86615,3489.0,3488.2,2.86673]
[1721681461186,0.35,3488.6,3488.3,2.86672]
[1721681461369,0.35,3488.6,3488.1,3.153509]
[1721681461688,0.35,3488.6,3488.2,2.86674]
[1721681461859,0.35,3488.6,3488.4,2.86664]
[1721681462055,0.35,3488.6,3488.5,2.86656]
[1721681462478,0.35,3488.6,3488.1,0.286689]
[1721681462687,0.35,3488.6,3488.3,2.86669]
[1721681462870,0.35,3488.6,3488.3,3.1820279]
[1721681463085,0.35,3488.6,3488.5,5.73312]
[1721681463384,3.0,3489.1,3488.7,2.86631]
[1721681463551,2.3449,3489.2,3488.7,2.86631]
[1721681463753,0.35,3488.8,3488.6,2.86643]
[1721681464599,0.35,3488.8,3488.7,2.86639]
[1721681464774,0.35,3488.8,3488.7,5.73278]
[1721681464972,0.35,3488.8,3488.7,6.306058]
[1721681465173,0.35,3488.8,3488.7,9.172448]
[1721681465355,2.4257,3490.0,3488.9,2.86622]
[1721681465562,0.35,3489.4,3489.2,2.86592]
[1721681465805,2.86545,3489.9,3489.2,2.86592]
[1721681465958,0.35,3489.5,3489.3,2.86586]
[1721681466298,0.35,3489.5,3489.0,2.8661]
[1721681466594,0.35,3489.5,3488.7,1.123278]
[1721681466595,0.35,3489.5,3489.1,0.28661]
[1721681466799,0.35,3489.5,3489.4,2.86582]
[1721681467095,0.35,3489.5,3488.7,1.123278]
[1721681467298,3.21575,3489.5,3488.7,6.305958]
[1721681467499,2.86586,3489.4,3488.8,2.86631]
[1721681467697,2.86586,3489.4,3488.6,2.86643]
[1721681467859,3.21577,3489.5,3488.7,0.573302]
[1721681468205,3.21577,3489.5,3488.6,2.86643]
[1721681468562,0.35,3489.5,3488.7,0.55]
[1721681468774,0.35,3489.5,3489.0,2.8661]
[1721681469589,0.35,3489.5,3489.0,2.86609]
[1721681470014,0.35,3489.5,3489.0,5.73219]
[1721681470186,0.35,3489.5,3489.1,0.573219]
[1721681470633,0.35,3489.5,3489.2,2.86593]
[1721681471632,0.35,3489.5,3488.8,2.3387]
[1721681471829,0.35,3489.5,3489.2,2.86597]
[1721681472031,0.35,3489.5,3489.2,2.86598]
[1721681472183,0.35,3489.5,3489.3,0.573208]
[1721681472388,0.35,3489.5,3489.1,2.86602]
[1721681472599,0.35,3489.5,3489.1,2.866]
[1721681473045,0.35,3489.5,3489.2,2.86593]
[1721681473328,0.35,3489.5,3489.1,2.86602]
[1721681473642,0.35,3489.5,3489.1,2.86601]
[1721681473801,5.58361417,3490.5,3489.2,1.12322]
[1721681474000,2.2692,3490.5,3489.9,2.8654]
[1721681474307,0.35,3490.1,3489.4,2.361]
[1721681474495,0.35,3490.1,3489.5,3.41569]
[1721681474699,0.35,3490.1,3489.6,0.864254]
[1721681474700,3.21526,3490.1,3489.6,0.864254]
[1721681474901,2.86536,3490.0,3489.6,0.864254]
[1721681475224,2.86536,3490.0,3489.5,0.55]
[1721681475438,2.3865,3489.8,3489.2,3.43914]
[1721681475587,2.86564,3489.7,3489.1,2.86603]
[1721681475808,2.86569,3489.6,3488.8,2.86627]
[1721681475997,2.86584,3489.4,3488.3,5.4813379]
[1721681476187,3.21584,3489.4,3488.8,5.73252]
[1721681476399,0.35,3489.4,3488.6,2.86642]
[1721681476604,3.21587,3489.4,3488.8,2.86627]
[1721681478139,3.21587,3489.4,3488.7,0.286642]
[1721681478140,2.86598,3489.2,3488.7,0.286642]
[1721681478491,3.21598,3489.2,3488.7,0.286642]
[1721681479231,2.86606,3489.1,3488.7,0.286642]
[1721681480108,2.86599,3489.2,3488.7,0.286642]
[1721681480312,3.21599,3489.2,3488.7,0.286642]
[1721681480638,2.8661,3489.1,3488.4,5.73315]
[1721681480801,2.8661,3489.1,3488.5,3.41651]
[1721681481202,2.8661,3489.1,3488.5,0.55]
[1721681481404,2.86578,3489.5,3488.8,2.86627]
[1721681481703,0.35,3489.3,3489.1,2.86605]
[1721681481936,0.35,3489.3,3488.9,0.286627]
[1721681481937,0.35,3489.3,3488.9,6.018957]
[1721681482122,2.86582,3489.4,3488.9,0.286627]
[1721681482326,3.21582,3489.4,3488.8,2.86631]
[1721681482845,0.35,3489.4,3488.9,2.86622]
[1721681483075,0.35,3489.4,3489.0,2.86611]
[1721681483345,0.35,3489.4,3489.0,2.8661]
[1721681483514,0.35,3489.4,3489.0,2.92341642]
[1721681483838,0.35,3489.4,3489.2,2.86593]
[1721681484039,0.35,3489.4,3489.3,2.8659]
[1721681484201,2.3865,3489.8,3489.4,2.86581]
[1721681484397,2.3865,3489.8,3489.2,2.86591]
[1721681484704,0.35,3489.6,3489.2,2.86591]
[1721681485033,0.35,3489.6,3489.0,2.8661]
[1721681486497,0.35,3489.6,3489.2,2.86594]
[1721681486724,0.35,3489.6,3489.2,2.86593]
[1721681486952,0.35,3489.6,3489.3,2.86589]
[1721681487221,3.21566,3489.6,3489.1,2.86602]
[1721681487452,0.35,3489.6,3489.1,5.73201]
[1721681487661,0.35,3489.6,3489.2,2.86592]
[1721681487954,0.35,3489.6,3489.3,2.86589]
[1721681488353,0.35,3489.6,3489.5,2.86574]
[1721681488525,0.35,3489.6,3489.5,5.73148]
[1721681488722,0.35,3489.6,3489.5,8.59722]
[1721681488919,0.35,3489.6,3489.5,10.14390204]
[1721681489135,2.86496,3490.5,3489.8,2.86545]
[1721681489438,2.86496,3490.5,3489.9,2.86537]
[1721681489439,0.35,3490.2,3489.9,2.86537]
[1721681489761,0.35,3490.2,3489.9,3.438452]
[1721681489923,2.86496,3490.5,3489.9,3.438452]
[1721681490126,0.35,3490.3,3490.0,2.86528]
[1721681490447,0.35,3490.3,3490.0,2.86527]
[1721681490963,0.35,3490.3,3490.0,2.86531]
[1721681491123,0.35,3490.3,3489.5,0.55]
[1721681491328,0.35,3490.3,3489.6,3.3246198]
[1721681491525,0.35,3490.3,3489.7,0.55]
[1721681491526,2.86516,3490.2,3489.7,0.55]
[1721681491735,3.21508,3490.3,3489.7,3.41555]
[1721681493262,0.35,3490.3,3489.9,2.86537]
[1721681493968,0.35,3490.3,3489.8,2.86544]
[1721681494835,0.35,3490.3,3489.8,5.73087]
[1721681495265,0.35,3490.3,3489.9,2.86536]
[1721681495588,0.35,3490.3,3490.0,2.86532]
[1721681496065,0.35,3490.3,3490.0,2.86527]
[1721681497035,0.35,3490.3,3489.8,0.67398898]
[1721681497266,3.2151,3490.3,3489.8,0.67398898]
[1721681497566,0.35,3490.3,3489.8,3.53942898]
[1721681497973,0.35,3490.3,3489.9,2.86536]
[1721681498174,0.35,3490.3,3489.8,0.67398898]
[1721681498387,3.21513,3490.3,3489.7,0.55]
[1721681498563,0.35,3490.3,3489.9,2.8654]
[1721681498729,0.35,3490.3,3489.7,0.55]
[1721681498935,0.35,3490.3,3489.8,2.86547]
[1721681499162,3.21508,3490.3,3489.8,2.86547]
[1721681499646,0.35,3490.3,3489.7,0.55]
[1721681499947,0.35,3490.3,3490.1,2.86522]
[1721681500130,0.35,3490.3,3490.1,5.73041]
[1721681500339,0.35,3490.3,3490.2,2.86516]
[1721681500646,0.35,3490.3,3490.1,2.86519]
[1721681501183,0.35,3490.3,3490.0,2.86532]
[1721681501331,0.35,3490.3,3490.0,2.86528]
[1721681501535,0.35,3490.3,3490.0,2.86527]
[1721681501750,0.35,3490.3,3490.1,2.86524]
[1721681502384,0.35,3490.3,3490.1,2.86518]
[1721681503035,0.35,3490.3,3489.9,2.86536]
[1721681503239,0.35,3490.3,3489.9,2.86534]
[1721681503684,0.35,3490.3,3490.1,2.86524]
[1721681504243,0.35,3490.3,3490.1,2.86519]
[1721681504551,0.35,3490.3,3489.4,0.55]
[1721681504883,0.35,3490.3,3490.1,2.8652]
[1721681506442,0.35,3490.3,3490.1,2.86518]
[1721681506639,0.35,3490.3,3489.9,2.86535]
[1721681506879,0.35,3490.3,3490.1,2.8652]
[1721681507346,0.35,3490.3,3490.2,2.86516]
[1721681510477,0.35,3490.3,3489.5,7.7989138]
[1721681510649,2.2885,3490.2,3489.9,2.8654]
[1721681510855,2.2885,3490.2,3490.0,2.86529]
[1721681511579,2.2885,3490.2,3490.0,2.86532]
[1721681512241,2.2885,3490.2,3489.9,2.8654]
[1721681512441,2.2885,3490.2,3489.9,2.86534]
[1721681514541,2.86565,3489.6,3489.5,7.4]
[1721681514785,5.86254,3490.2,3488.0,2.91783999]
[1721681514786,2.4074,3489.5,3488.0,2.91783999]
[1721681514997,2.86598,3489.2,3488.4,2.86657]
[1721681515139,2.4074,3489.5,3488.5,2.86655]
[1721681515338,2.4074,3489.5,3488.8,2.86631]
[1721681515594,2.4074,3489.5,3488.4,2.86663]
[1721681515775,2.4074,3489.5,3489.0,2.86609]
[1721681515941,0.35,3489.2,3489.0,2.86608]
[1721681516141,0.35,3489.2,3489.0,3.439318]
[1721681516384,2.4074,3489.5,3489.0,0.573238]
[1721681516679,2.4074,3489.5,3488.9,2.86621]
[1721681516843,0.35,3489.4,3488.9,2.86621]
[1721681517044,0.35,3489.4,3488.4,2.86663]
[1721681517260,2.4474,3488.9,3488.4,2.86663]
[1721681517459,2.4474,3488.9,3487.6,5.99833999]
[1721681517764,2.4474,3488.9,3488.1,2.86688]
[1721681517963,2.4474,3488.9,3487.7,0.990005]
[1721681517964,5.66363,3488.9,3487.7,0.990005]
[1721681518206,2.7974,3488.9,3488.2,2.86674]
[1721681518549,2.7974,3488.9,3487.7,0.990005]
[1721681518785,2.7974,3488.9,3488.8,2.86631]
[1721681519046,2.4474,3489.3,3488.8,0.286631]
[1721681519253,2.4474,3489.3,3488.7,2.86639]
[1721681519510,2.4474,3489.3,3488.8,2.8663]
[1721681519511,0.35,3489.2,3488.8,2.8663]
[1721681520021,0.35,3489.2,3488.9,2.86619]
[1721681520163,0.35,3489.2,3489.0,2.86612]
[1721681520360,2.4474,3489.3,3489.2,2.86598]
[1721681520564,2.4508,3489.8,3489.2,3.439186]
[1721681520801,2.4508,3489.8,3489.0,2.86608]
[1721681521009,0.35,3489.4,3489.0,2.86608]
[1721681521498,0.35,3489.4,3488.9,2.86621]
[1721681522015,5.36,3489.3,3488.8,7.4]
[1721681522300,2.4941,3489.3,3488.8,7.4]
[1721681523517,5.36001,3489.3,3488.8,7.4]
[1721681523875,8.22599,3489.3,3488.8,7.4]
[1721681524075,8.22599,3489.3,3488.5,2.86649]
[1721681524279,5.36001,3489.3,3488.6,2.86645]
[1721681524580,2.86629,3488.9,3487.8,0.60113999]
[1721681524889,2.3231,3488.8,3488.2,2.86674]
[1721681525223,5.53942,3488.8,3488.2,2.86674]
[1721681525531,5.53942,3488.8,3488.0,2.86694]
[1721681525532,2.86643,3488.7,3488.0,2.86694]
[1721681525761,2.86643,3488.7,3488.1,0.573404]
[1721681526404,2.86648,3488.6,3488.1,0.573404]
[1721681527209,8.4058,3488.8,3488.1,3.440244]
[1721681527369,5.53942,3488.8,3488.1,3.440244]
[1721681527665,8.4058,3488.8,3488.1,3.440244]
[1721681528279,2.8664,3488.7,3488.1,3.440244]
[1721681528481,2.8664,3488.7,3488.2,0.6307154]
[1721681529103,2.8664,3488.7,3488.1,2.86684]
[1721681530086,2.8664,3488.7,3487.6,2.86728]
[1721681530281,2.6731,3488.8,3488.2,2.86676]
[1721681530282,5.53941,3488.8,3488.2,2.86676]
[1721681530591,0.35,3488.8,3488.7,2.86639]
[1721681530910,2.2529,3489.2,3488.7,2.86639]
[1721681531107,2.2529,3489.2,3488.7,2.86633]
[1721681531310,2.2529,3489.2,3488.8,2.86625]
[1721681531497,2.2529,3489.2,3488.7,2.86633]
[1721681531694,0.35,3489.1,3488.7,2.86633]
[1721681532622,0.35,3489.1,3488.9,2.86616]
[1721681532996,2.2529,3489.2,3488.8,2.86627]
[1721681533192,2.6029,3489.2,3488.8,2.86627]
[1721681533598,2.6029,3489.2,3488.7,3.439676]
[1721681533929,2.6029,3489.2,3488.7,0.573286]
[1721681534106,2.6029,3489.2,3488.3,7.4]
[1721681534107,2.6029,3489.2,3489.1,2.86606]
[1721681534316,0.35,3489.2,3489.1,5.73212]
[1721681534639,2.3057,3489.6,3489.3,2.86583]
[1721681534825,0.35,3489.6,3489.5,2.86574]
[1721681535007,2.2694,3490.0,3489.4,2.86581]
[1721681535217,0.35,3489.8,3489.4,2.86581]
[1721681535730,0.35,3489.8,3489.5,2.86569]
[1721681536099,0.35,3489.8,3489.3,2.86588]
[1721681536801,0.35,3489.8,3489.4,2.86576]
[1721681538649,0.35,3489.8,3489.6,2.86565]
[1721681539302,0.35,3489.8,3489.5,2.86566]
[1721681539502,2.2694,3490.0,3489.7,2.86556]
[1721681539803,0.35,3489.9,3489.7,2.86556]
[1721681540221,0.35,3489.9,3489.5,2.86566]
[1721681540427,0.35,3489.9,3489.6,2.86564]
[1721681540621,0.35,3489.9,3489.7,2.86552]
[1721681541539,0.35,3489.9,3489.5,2.86566]
[1721681542042,0.35,3489.9,3489.6,2.86564]
[1721681542227,0.35,3489.9,3489.7,2.86555]
[1721681542411,2.2694,3490.0,3489.7,2.86555]
[1721681542618,2.6194,3490.0,3489.7,2.86555]
[1721681543143,2.6194,3490.0,3489.7,2.86553]
[1721681543674,2.6194,3490.0,3489.8,2.86544]
[1721681543963,2.6194,3490.0,3489.9,2.86541]
[1721681544175,2.4809,3490.5,3490.0,2.86526]
[1721681544328,0.35,3490.1,3490.0,2.86526]
[1721681544667,0.35,3490.3,3490.0,2.86526]
[1721681545348,0.35,3490.3,3489.8,2.86549]
[1721681546261,0.35,3490.3,3489.8,5.73092]
[1721681546463,0.35,3490.3,3489.8,2.86543]
[1721681546762,0.35,3490.3,3489.9,2.8654]
[1721681547964,3.43171942,3493.5,3489.9,2.8654]
[1721681547965,0.4494326,3491.4,3490.2,2.447]
[1721681548177,0.35,3491.2,3491.1,5.72884]
[1721681548391,2.86377,3491.9,3490.4,2.86499]
[1721681548392,2.45277137,3492.8,3491.6,2.86394]
[1721681548540,0.35,3491.8,3491.6,2.86394]
[1721681548734,0.35,3491.8,3491.5,2.86409]
[1721681549081,0.35,3491.8,3491.4,5.72826]
[1721681549371,0.35,3491.8,3491.5,2.86404]
[1721681549576,5.35521,3492.1,3491.4,2.86417]
[1721681549880,0.35,3491.9,3491.6,2.864]
[1721681550461,2.4916,3492.1,3491.6,2.864]
[1721681550771,0.35,3492.0,3491.6,2.864]